[Event "Grandmaster Triathlon - Blitz (GM1)"]
[Site "Biel, Switzerland"]
[Date "2026.07.19"]
[Round "9.2"]
[White "Erdogmus, Yagiz Kaan"]
[Black "Aronian, Levon"]
[Result "0-1"]
[TimeControl "3 min + 2 sec"]
[WhiteTitle "-"]
[BlackTitle "-"]
[WhiteFideId "44599790"]
[BlackFideId "13300474"]
[WhiteElo "2546"]
[BlackElo "2700"]

1. e4 {[%clk 00:03:02]} {[%emt 00:00:01]} e5 {[%clk 00:03:03]} {[%emt
00:00:02]} 2. Nf3 {[%clk 00:03:03]} {[%emt 00:00:01]} Nf6 {[%clk 00:03:04]}
{[%emt 00:00:01]} 3. Nc3 {[%clk 00:03:03]} {[%emt 00:00:01]} d6 {[%clk
00:03:05]} {[%emt 00:00:02]} 4. d4 {[%clk 00:02:54]} {[%emt 00:00:11]} Nbd7
{[%clk 00:03:06]} {[%emt 00:00:01]} 5. Bc4 {[%clk 00:02:53]} {[%emt 00:00:03]}
Be7 {[%clk 00:03:08]} 6. O-O {[%clk 00:02:53]} {[%emt 00:00:02]} O-O {[%clk
00:03:08]} {[%emt 00:00:01]} 7. Re1 {[%clk 00:02:54]} {[%emt 00:00:02]} c6
{[%clk 00:03:08]} {[%emt 00:00:02]} 8. a4 {[%clk 00:02:54]} h6 {[%clk
00:03:09]} {[%emt 00:00:01]} 9. h3 {[%clk 00:02:50]} {[%emt 00:00:06]} exd4
{[%clk 00:03:10]} {[%emt 00:00:01]} 10. Qxd4 {[%clk 00:02:48]} {[%emt
00:00:04]} Ne5 {[%clk 00:03:11]} {[%emt 00:00:01]} 11. Be2 {[%clk 00:02:40]}
{[%emt 00:00:10]} Ng6 {[%clk 00:02:46]} {[%emt 00:00:26]} 12. Be3 {[%clk
00:01:46]} {[%emt 00:00:57]} Be6 {[%clk 00:02:31]} {[%emt 00:00:17]} 13. Qd2
{[%clk 00:01:44]} {[%emt 00:00:05]} d5 {[%clk 00:02:28]} {[%emt 00:00:05]} 14.
exd5 {[%clk 00:00:35]} {[%emt 00:01:10]} Nxd5 {[%clk 00:02:28]} {[%emt
00:00:02]} 15. Nxd5 {[%clk 00:00:34]} {[%emt 00:00:04]} Bxd5 {[%clk 00:02:17]}
{[%emt 00:00:13]} 16. Nd4 {[%clk 00:00:34]} {[%emt 00:00:02]} Bf6 {[%clk
00:02:08]} {[%emt 00:00:11]} 17. c3 {[%clk 00:00:28]} {[%emt 00:00:08]} Re8
{[%clk 00:02:01]} {[%emt 00:00:09]} 18. Bf1 {[%clk 00:00:25]} {[%emt 00:00:04]}
Qc7 {[%clk 00:01:44]} {[%emt 00:00:19]} 19. Qc2 {[%clk 00:00:26]} {[%emt
00:00:01]} Re5 {[%clk 00:01:09]} {[%emt 00:00:36]} 20. Bd2 {[%clk 00:00:18]}
{[%emt 00:00:11]} Rae8 {[%clk 00:01:00]} {[%emt 00:00:11]} 21. Rxe5 {[%clk
00:00:19]} {[%emt 00:00:01]} Bxe5 {[%clk 00:01:02]} 22. Re1 {[%clk 00:00:17]}
{[%emt 00:00:04]} Bh2+ {[%clk 00:01:02]} {[%emt 00:00:01]} 23. Kh1 {[%clk
00:00:18]} Rxe1 {[%clk 00:01:04]} {[%emt 00:00:01]} 24. Bxe1 {[%clk 00:00:19]}
Be5 {[%clk 00:01:04]} {[%emt 00:00:02]} 25. Nf5 {[%clk 00:00:16]} {[%emt
00:00:06]} Bf4 {[%clk 00:00:52]} {[%emt 00:00:14]} 26. Qe2 {[%clk 00:00:13]}
{[%emt 00:00:04]} Qd7 {[%clk 00:00:48]} {[%emt 00:00:06]} 27. Qc2 {[%clk
00:00:06]} {[%emt 00:00:09]} Qe6 {[%clk 00:00:49]} {[%emt 00:00:01]} 28. Ne3
{[%clk 00:00:03]} {[%emt 00:00:05]} Qxh3+ {[%clk 00:00:25]} {[%emt 00:00:06]}
0-1

[Event "Grandmaster Triathlon - Blitz (GM1)"]
[Site "Biel, Switzerland"]
[Date "2026.07.19"]
[Round "9.3"]
[White "Suleymanli, Aydin"]
[Black "Bluebaum, Matthias"]
[Result "1/2-1/2"]
[TimeControl "3 min + 2 sec"]
[WhiteTitle "-"]
[BlackTitle "-"]
[WhiteFideId "13413937"]
[BlackFideId "24651516"]
[WhiteElo "2559"]
[BlackElo "2634"]

1. d4 {[%clk 00:03:03]} d5 {[%clk 00:03:04]} {[%emt 00:00:01]} 2. Nf3 {[%clk
00:02:58]} {[%emt 00:00:07]} e6 {[%clk 00:03:05]} {[%emt 00:00:01]} 3. e3
{[%clk 00:02:54]} {[%emt 00:00:06]} Nf6 {[%clk 00:03:05]} {[%emt 00:00:02]} 4.
Nbd2 {[%clk 00:02:55]} {[%emt 00:00:01]} c5 {[%clk 00:03:03]} {[%emt 00:00:04]}
5. b3 {[%clk 00:02:57]} Nc6 {[%clk 00:03:02]} {[%emt 00:00:03]} 6. Bb2 {[%clk
00:02:58]} {[%emt 00:00:01]} b6 {[%clk 00:03:03]} {[%emt 00:00:01]} 7. Bd3
{[%clk 00:02:57]} {[%emt 00:00:03]} Bb7 {[%clk 00:03:04]} {[%emt 00:00:01]} 8.
O-O {[%clk 00:02:57]} {[%emt 00:00:01]} Bd6 {[%clk 00:03:05]} {[%emt 00:00:01]}
9. a3 {[%clk 00:02:57]} {[%emt 00:00:02]} O-O {[%clk 00:03:05]} {[%emt
00:00:02]} 10. Ne5 {[%clk 00:02:57]} {[%emt 00:00:02]} Qc7 {[%clk 00:03:06]}
{[%emt 00:00:01]} 11. f4 {[%clk 00:02:55]} {[%emt 00:00:04]} Ne7 {[%clk
00:03:07]} {[%emt 00:00:02]} 12. a4 {[%clk 00:02:34]} {[%emt 00:00:23]} Ne4
{[%clk 00:02:53]} {[%emt 00:00:16]} 13. Bxe4 {[%clk 00:02:31]} {[%emt
00:00:04]} dxe4 {[%clk 00:02:54]} {[%emt 00:00:01]} 14. Ndc4 {[%clk 00:02:32]}
Rad8 {[%clk 00:02:38]} {[%emt 00:00:17]} 15. Nxd6 {[%clk 00:01:05]} {[%emt
00:01:29]} Rxd6 {[%clk 00:02:39]} {[%emt 00:00:01]} 16. Qe2 {[%clk 00:01:07]}
f6 {[%clk 00:02:23]} {[%emt 00:00:18]} 17. dxc5 {[%clk 00:01:04]} {[%emt
00:00:05]} bxc5 {[%clk 00:02:23]} {[%emt 00:00:03]} 18. Nc4 {[%clk 00:00:59]}
{[%emt 00:00:07]} Ba6 {[%clk 00:02:14]} {[%emt 00:00:11]} 19. Rad1 {[%clk
00:00:50]} {[%emt 00:00:10]} Rfd8 {[%clk 00:02:14]} {[%emt 00:00:02]} 20. Rxd6
{[%clk 00:00:26]} {[%emt 00:00:26]} Rxd6 {[%clk 00:02:15]} {[%emt 00:00:01]} 21.
Qg4 {[%clk 00:00:23]} {[%emt 00:00:05]} Bxc4 {[%clk 00:02:07]} {[%emt
00:00:11]} 22. bxc4 {[%clk 00:00:24]} {[%emt 00:00:01]} Nf5 {[%clk 00:02:00]}
{[%emt 00:00:09]} 23. Bxf6 {[%clk 00:00:15]} {[%emt 00:00:11]} Nxe3 {[%clk
00:01:52]} {[%emt 00:00:10]} 24. Qe2 {[%clk 00:00:16]} {[%emt 00:00:01]} Nxf1
{[%clk 00:01:48]} {[%emt 00:00:07]} 25. Be5 {[%emt 00:00:02]} Rd2 {[%clk
00:01:05]} {[%emt 00:00:44]} 26. Qxd2 {[%clk 00:00:12]} {[%emt 00:00:06]} Nxd2
{[%clk 00:01:06]} {[%emt 00:00:01]} 27. Bxc7 {[%clk 00:00:13]} Nxc4 {[%clk
00:01:07]} {[%emt 00:00:01]} 28. Kf2 {[%clk 00:00:11]} {[%emt 00:00:04]} Kf7
{[%clk 00:01:08]} {[%emt 00:00:01]} 29. Bd8 {[%clk 00:00:06]} {[%emt 00:00:07]}
Ke8 {[%clk 00:00:46]} {[%emt 00:00:24]} 30. Bh4 {[%clk 00:00:07]} {[%emt
00:00:01]} Kd7 {[%clk 00:00:45]} {[%emt 00:00:03]} 31. Ke2 {[%clk 00:00:08]}
Kd6 {[%clk 00:00:46]} {[%emt 00:00:02]} 32. g4 {[%clk 00:00:07]} {[%emt
00:00:02]} Kd5 {[%clk 00:00:46]} {[%emt 00:00:02]} 33. Bd8 {[%clk 00:00:05]}
{[%emt 00:00:04]} g6 {[%clk 00:00:47]} {[%emt 00:00:01]} 34. h3 {[%clk
00:00:05]} {[%emt 00:00:01]} a6 {[%clk 00:00:45]} {[%emt 00:00:05]} 35. Bc7
{[%clk 00:00:05]} {[%emt 00:00:02]} Nb2 {[%clk 00:00:46]} {[%emt 00:00:02]} 36.
a5 {[%clk 00:00:05]} {[%emt 00:00:01]} Nc4 {[%clk 00:00:47]} {[%emt 00:00:01]}
37. Bd8 {[%clk 00:00:06]} Kd6 {[%clk 00:00:41]} {[%emt 00:00:08]} 38. Kf2
{[%clk 00:00:04]} {[%emt 00:00:03]} Kd7 {[%clk 00:00:42]} 39. Bf6 {[%clk
00:00:05]} {[%emt 00:00:01]} Kc6 {[%clk 00:00:30]} {[%emt 00:00:15]} 40. Bd8
{[%clk 00:00:04]} {[%emt 00:00:02]} Kd6 {[%clk 00:00:30]} {[%emt 00:00:02]} 41.
Ke2 {[%clk 00:00:05]} {[%emt 00:00:02]} Kd5 {[%clk 00:00:32]} 42. Kf2 {[%clk
00:00:03]} {[%emt 00:00:03]} Na3 {[%clk 00:00:28]} {[%emt 00:00:07]} 43. c3
{[%clk 00:00:04]} {[%emt 00:00:02]} Nb5 {[%clk 00:00:26]} {[%emt 00:00:03]} 44.
Bf6 {[%clk 00:00:04]} {[%emt 00:00:01]} Kc4 {[%clk 00:00:22]} {[%emt 00:00:06]}
45. Ke3 {[%clk 00:00:05]} Nxc3 {[%clk 00:00:23]} 46. Bg7 {[%clk 00:00:05]} Kb3
{[%clk 00:00:23]} {[%emt 00:00:03]} 47. h4 {[%clk 00:00:05]} {[%emt 00:00:02]}
h5 {[%clk 00:00:15]} {[%emt 00:00:10]} 48. gxh5 {[%clk 00:00:05]} {[%emt
00:00:03]} gxh5 {[%clk 00:00:16]} 49. Be5 {[%clk 00:00:04]} {[%emt 00:00:03]}
c4 {[%clk 00:00:10]} {[%emt 00:00:08]} 50. Bg7 {[%clk 00:00:04]} {[%emt
00:00:02]} Nd5 {[%clk 00:00:05]} {[%emt 00:00:07]} 51. Kxe4 {[%clk 00:00:04]}
c3 {[%clk 00:00:06]} 52. f5 {[%clk 00:00:03]} {[%emt 00:00:03]} c2 {[%clk
00:00:04]} {[%emt 00:00:04]} 53. Bh6 {[%clk 00:00:05]} Nc3+ {[%clk 00:00:05]}
{[%emt 00:00:01]} 54. Ke5 {[%clk 00:00:05]} {[%emt 00:00:02]} exf5 {[%clk
00:00:06]} {[%emt 00:00:01]} 55. Kxf5 {[%clk 00:00:06]} Ne2 {[%clk 00:00:07]}
56. Kg6 {[%clk 00:00:04]} {[%emt 00:00:04]} Ng3 {[%clk 00:00:08]} {[%emt
00:00:01]} 57. Bc1 {[%clk 00:00:03]} {[%emt 00:00:03]} Ka2 {[%clk 00:00:09]} 58.
Kg5 {[%clk 00:00:04]} {[%emt 00:00:01]} Kb1 {[%clk 00:00:09]} {[%emt 00:00:03]}
59. Bf4 {[%clk 00:00:04]} c1=Q {[%clk 00:00:08]} {[%emt 00:00:04]} 60. Bxc1
{[%clk 00:00:05]} Kxc1 {[%clk 00:00:09]} 61. Kf4 {[%clk 00:00:06]} Ne2+ {[%clk
00:00:10]} {[%emt 00:00:01]} 62. Kg5 {[%clk 00:00:08]} Nd4 {[%clk 00:00:09]}
{[%emt 00:00:03]} 63. Kxh5 {[%clk 00:00:09]} {[%emt 00:00:01]} Nf3 {[%clk
00:00:05]} {[%emt 00:00:06]} 64. Kg4 {[%clk 00:00:10]} Nxh4 {[%clk 00:00:04]}
{[%emt 00:00:02]} 65. Kxh4 {[%clk 00:00:11]} {[%emt 00:00:01]} Kb2 {[%clk
00:00:06]} 66. Kg3 {[%clk 00:00:12]} Kb3 {[%clk 00:00:07]} 67. Kf2 {[%clk
00:00:13]} Kb4 {[%clk 00:00:09]} 68. Ke2 {[%clk 00:00:15]} Kxa5 {[%clk
00:00:09]} {[%emt 00:00:02]} 69. Kd2 {[%clk 00:00:16]} 1/2-1/2

[Event "Grandmaster Triathlon - Blitz (GM1)"]
[Site "Biel, Switzerland"]
[Date "2026.07.19"]
[Round "10.1"]
[White "Aronian, Levon"]
[Black "Martinez Alcantara, Jose Eduardo"]
[Result "1-0"]
[TimeControl "3 min + 2 sec"]
[WhiteTitle "-"]
[BlackTitle "-"]
[WhiteFideId "13300474"]
[BlackFideId "3805662"]
[WhiteElo "2700"]
[BlackElo "2641"]

1. e4 {[%clk 00:03:03]} c5 {[%clk 00:03:03]} {[%emt 00:00:01]} 2. Nf3 {[%clk
00:03:04]} {[%emt 00:00:01]} Nc6 {[%clk 00:03:04]} 3. Bb5 {[%clk 00:03:05]}
{[%emt 00:00:01]} g6 {[%clk 00:03:03]} {[%emt 00:00:03]} 4. Bxc6 {[%clk
00:03:01]} {[%emt 00:00:06]} dxc6 {[%clk 00:03:02]} {[%emt 00:00:02]} 5. d3
{[%clk 00:02:55]} {[%emt 00:00:08]} Bg7 {[%clk 00:03:01]} {[%emt 00:00:03]} 6.
h3 {[%clk 00:02:54]} {[%emt 00:00:03]} e5 {[%clk 00:03:02]} {[%emt 00:00:01]} 7.
Be3 {[%clk 00:02:49]} {[%emt 00:00:07]} Qe7 {[%clk 00:03:02]} {[%emt 00:00:01]}
8. Qd2 {[%clk 00:02:37]} {[%emt 00:00:14]} Nf6 {[%clk 00:02:51]} {[%emt
00:00:13]} 9. Qc3 {[%clk 00:02:37]} {[%emt 00:00:02]} Nd7 {[%clk 00:02:42]}
{[%emt 00:00:11]} 10. Nbd2 {[%clk 00:02:34]} {[%emt 00:00:05]} O-O {[%clk
00:02:39]} {[%emt 00:00:04]} 11. g4 {[%clk 00:02:02]} {[%emt 00:00:35]} b6
{[%clk 00:02:36]} {[%emt 00:00:05]} 12. Rg1 {[%clk 00:01:57]} {[%emt 00:00:07]}
Re8 {[%clk 00:02:19]} {[%emt 00:00:19]} 13. Bg5 {[%clk 00:01:40]} {[%emt
00:00:19]} f6 {[%clk 00:02:03]} {[%emt 00:00:19]} 14. Be3 {[%clk 00:01:41]} Nf8
{[%clk 00:02:04]} {[%emt 00:00:01]} 15. a3 {[%clk 00:01:43]} Ne6 {[%clk
00:02:02]} {[%emt 00:00:04]} 16. b4 {[%clk 00:01:44]} cxb4 {[%clk 00:01:37]}
{[%emt 00:00:27]} 17. axb4 {[%clk 00:01:45]} Bd7 {[%clk 00:01:38]} 18. Kf1
{[%clk 00:01:39]} {[%emt 00:00:08]} Rec8 {[%clk 00:01:29]} {[%emt 00:00:11]} 19.
Kg2 {[%clk 00:01:27]} {[%emt 00:00:14]} c5 {[%clk 00:01:31]} {[%emt 00:00:01]}
20. bxc5 {[%clk 00:01:28]} {[%emt 00:00:01]} Nxc5 {[%clk 00:01:31]} {[%emt
00:00:02]} 21. Qa3 {[%clk 00:01:12]} {[%emt 00:00:17]} Bf8 {[%clk 00:01:12]}
{[%emt 00:00:21]} 22. Rgb1 {[%clk 00:01:11]} {[%emt 00:00:03]} g5 {[%clk
00:00:58]} {[%emt 00:00:16]} 23. Bxc5 {[%clk 00:00:58]} {[%emt 00:00:15]} Qxc5
{[%clk 00:00:48]} {[%emt 00:00:12]} 24. Qxc5 {[%clk 00:00:53]} {[%emt
00:00:08]} Bxc5 {[%clk 00:00:49]} 25. Nf1 {[%clk 00:00:44]} {[%emt 00:00:11]}
Kf7 {[%clk 00:00:33]} {[%emt 00:00:18]} 26. c4 {[%clk 00:00:45]} a5 {[%clk
00:00:32]} {[%emt 00:00:03]} 27. Ne3 {[%clk 00:00:47]} Bc6 {[%clk 00:00:30]}
{[%emt 00:00:04]} 28. Nd5 {[%clk 00:00:47]} {[%emt 00:00:01]} Rab8 {[%clk
00:00:15]} {[%emt 00:00:17]} 29. Ne1 {[%clk 00:00:39]} {[%emt 00:00:10]} a4
{[%clk 00:00:16]} {[%emt 00:00:01]} 30. Nb4 {[%clk 00:00:34]} {[%emt 00:00:07]}
Ra8 {[%clk 00:00:12]} {[%emt 00:00:06]} 31. Nec2 {[%clk 00:00:27]} {[%emt
00:00:09]} Ke6 {[%clk 00:00:10]} {[%emt 00:00:04]} 32. Kf3 {[%clk 00:00:27]}
{[%emt 00:00:02]} Bd7 {[%clk 00:00:08]} {[%emt 00:00:04]} 33. Nd5 {[%clk
00:00:22]} {[%emt 00:00:07]} Rab8 {[%clk 00:00:10]} 34. Na3 {[%clk 00:00:22]}
{[%emt 00:00:02]} h5 {[%clk 00:00:06]} {[%emt 00:00:06]} 35. Nb5 {[%clk
00:00:21]} {[%emt 00:00:02]} Bxb5 {[%clk 00:00:03]} {[%emt 00:00:05]} 36. Rxb5
{[%clk 00:00:22]} a3 {[%clk 00:00:04]} 37. gxh5 {[%clk 00:00:18]} {[%emt
00:00:06]} f5 {[%clk 00:00:04]} {[%emt 00:00:03]} 38. exf5+ {[%clk 00:00:11]}
{[%emt 00:00:09]} Kxf5 {[%clk 00:00:05]} 39. Nc3 {[%clk 00:00:11]} {[%emt
00:00:02]} Bd4 {[%clk 00:00:06]} {[%emt 00:00:02]} 40. Rxa3 {[%clk 00:00:12]}
Rh8 {[%clk 00:00:06]} {[%emt 00:00:02]} 41. Ne2 {[%clk 00:00:11]} {[%emt
00:00:02]} Bc5 {[%clk 00:00:07]} {[%emt 00:00:01]} 42. Ra7 {[%clk 00:00:12]}
{[%emt 00:00:01]} Rbf8 {[%clk 00:00:08]} {[%emt 00:00:01]} 43. Kg2 {[%clk
00:00:10]} {[%emt 00:00:03]} Ke6 {[%clk 00:00:08]} {[%emt 00:00:02]} 44. f3
{[%clk 00:00:11]} {[%emt 00:00:01]} Rd8 {[%clk 00:00:09]} 45. Rb3 {[%clk
00:00:11]} {[%emt 00:00:02]} Rxh5 {[%clk 00:00:10]} 46. Ng3 {[%clk 00:00:13]}
Rhh8 {[%clk 00:00:06]} {[%emt 00:00:05]} 47. Ne4 {[%clk 00:00:14]} {[%emt
00:00:01]} Be3 {[%clk 00:00:07]} {[%emt 00:00:01]} 48. Rg7 {[%clk 00:00:11]}
{[%emt 00:00:05]} Ra8 {[%clk 00:00:08]} 49. Rb2 {[%clk 00:00:10]} {[%emt
00:00:03]} Ra1 {[%clk 00:00:08]} {[%emt 00:00:01]} 50. Rg6+ {[%clk 00:00:09]}
{[%emt 00:00:03]} Ke7 {[%clk 00:00:10]} 51. Re2 {[%clk 00:00:07]} {[%emt
00:00:04]} Bd4 {[%clk 00:00:10]} {[%emt 00:00:02]} 52. Rxg5 {[%clk 00:00:07]}
{[%emt 00:00:02]} Rg1+ {[%clk 00:00:04]} {[%emt 00:00:09]} 53. Kh2 {[%clk
00:00:08]} Rf1 {[%clk 00:00:05]} 54. Rg3 {[%clk 00:00:06]} {[%emt 00:00:04]}
Rd1 {[%clk 00:00:06]} 55. Nf2 {[%clk 00:00:05]} {[%emt 00:00:03]} Bxf2 {[%clk
00:00:05]} {[%emt 00:00:04]} 56. Rxf2 {[%clk 00:00:06]} Rxd3 {[%clk 00:00:06]}
57. f4 {[%clk 00:00:07]} Rd4 {[%clk 00:00:03]} {[%emt 00:00:05]} 58. fxe5
{[%clk 00:00:04]} {[%emt 00:00:05]} Rxc4 {[%clk 00:00:05]} 59. Rf6 {[%clk
00:00:05]} {[%emt 00:00:02]} Rc2+ {[%clk 00:00:04]} {[%emt 00:00:02]} 60. Kh1
{[%clk 00:00:04]} {[%emt 00:00:03]} Rc1+ {[%clk 00:00:04]} {[%emt 00:00:02]} 61.
Kg2 {[%clk 00:00:05]} Rc2+ {[%clk 00:00:05]} 62. Kf1 {[%clk 00:00:06]} {[%emt
00:00:02]} Ra8 {[%emt 00:00:05]} 63. Rg7+ {[%clk 00:00:07]} 1-0

[Event "Grandmaster Triathlon - Blitz (GM1)"]
[Site "Biel, Switzerland"]
[Date "2026.07.19"]
[Round "10.2"]
[White "Bluebaum, Matthias"]
[Black "Erdogmus, Yagiz Kaan"]
[Result "0-1"]
[TimeControl "3 min + 2 sec"]
[WhiteTitle "-"]
[BlackTitle "-"]
[WhiteFideId "24651516"]
[BlackFideId "44599790"]
[WhiteElo "2634"]
[BlackElo "2546"]

1. d4 {[%clk 00:03:03]} e6 {[%clk 00:03:04]} 2. c4 {[%clk 00:03:05]} b6 {[%clk
00:03:06]} 3. a3 {[%clk 00:03:05]} {[%emt 00:00:02]} Bb7 {[%clk 00:03:07]} 4.
Nc3 {[%clk 00:03:06]} Nf6 {[%clk 00:03:07]} {[%emt 00:00:02]} 5. Bf4 {[%clk
00:03:07]} g6 {[%clk 00:03:01]} {[%emt 00:00:08]} 6. Qc2 {[%clk 00:03:06]}
{[%emt 00:00:03]} Bg7 {[%clk 00:02:40]} {[%emt 00:00:23]} 7. e4 {[%clk
00:03:07]} O-O {[%clk 00:02:22]} {[%emt 00:00:20]} 8. Nf3 {[%clk 00:03:08]}
{[%emt 00:00:02]} d6 {[%clk 00:02:15]} {[%emt 00:00:09]} 9. Be3 {[%clk
00:02:56]} {[%emt 00:00:14]} c5 {[%clk 00:02:00]} {[%emt 00:00:18]} 10. d5
{[%clk 00:02:46]} {[%emt 00:00:12]} exd5 {[%clk 00:02:00]} {[%emt 00:00:02]} 11.
cxd5 {[%clk 00:02:47]} a6 {[%clk 00:02:01]} 12. a4 {[%clk 00:02:48]} {[%emt
00:00:01]} Re8 {[%clk 00:02:00]} {[%emt 00:00:03]} 13. h3 {[%clk 00:02:39]}
{[%emt 00:00:11]} Nbd7 {[%clk 00:01:54]} {[%emt 00:00:07]} 14. Nd2 {[%clk
00:02:27]} {[%emt 00:00:14]} Qe7 {[%clk 00:01:16]} {[%emt 00:00:40]} 15. Be2
{[%clk 00:02:21]} {[%emt 00:00:08]} b5 {[%clk 00:01:11]} {[%emt 00:00:07]} 16.
axb5 {[%clk 00:02:11]} {[%emt 00:00:12]} axb5 {[%clk 00:01:13]} 17. Rxa8 {[%clk
00:02:12]} {[%emt 00:00:01]} Rxa8 {[%clk 00:01:07]} {[%emt 00:00:08]} 18. Bxb5
{[%clk 00:02:13]} {[%emt 00:00:01]} Ra1+ {[%clk 00:01:01]} {[%emt 00:00:08]} 19.
Nd1 {[%clk 00:02:12]} {[%emt 00:00:03]} Nb6 {[%clk 00:00:23]} {[%emt 00:00:41]}
20. O-O {[%clk 00:02:09]} {[%emt 00:00:05]} Nbxd5 {[%clk 00:00:14]} {[%emt
00:00:10]} 21. exd5 {[%clk 00:02:08]} {[%emt 00:00:02]} Nxd5 {[%clk 00:00:16]}
{[%emt 00:00:01]} 22. Nc4 {[%clk 00:01:45]} {[%emt 00:00:25]} Nc7 {[%clk
00:00:13]} {[%emt 00:00:05]} 23. Ba4 {[%clk 00:01:26]} {[%emt 00:00:21]} Ba6
{[%clk 00:00:10]} {[%emt 00:00:05]} 24. Re1 {[%clk 00:01:04]} {[%emt 00:00:24]}
d5 {[%clk 00:00:11]} {[%emt 00:00:01]} 25. Nb6 {[%clk 00:01:05]} d4 {[%clk
00:00:06]} {[%emt 00:00:06]} 26. Bd2 {[%clk 00:01:06]} {[%emt 00:00:01]} Ne6
{[%clk 00:00:04]} {[%emt 00:00:04]} 27. Bb3 {[%clk 00:01:00]} {[%emt 00:00:08]}
d3 {[%clk 00:00:06]} 28. Nd5 {[%clk 00:00:45]} {[%emt 00:00:17]} Qb7 {[%clk
00:00:07]} 29. Qc4 {[%clk 00:00:34]} {[%emt 00:00:13]} Bxc4 {[%clk 00:00:08]}
30. Bxc4 {[%clk 00:00:35]} Bxb2 {[%clk 00:00:05]} {[%emt 00:00:04]} 31. g3
{[%clk 00:00:23]} {[%emt 00:00:14]} Bd4 {[%clk 00:00:06]} {[%emt 00:00:01]} 32.
Rf1 {[%clk 00:00:22]} {[%emt 00:00:03]} Ra4 {[%clk 00:00:07]} {[%emt 00:00:01]}
33. N1e3 {[%clk 00:00:23]} {[%emt 00:00:01]} Rxc4 {[%clk 00:00:08]} {[%emt
00:00:01]} 34. Nxc4 {[%clk 00:00:23]} {[%emt 00:00:02]} Qxd5 {[%clk 00:00:09]}
35. Ne3 {[%clk 00:00:24]} Qf3 {[%clk 00:00:11]} 36. Ng2 {[%clk 00:00:24]}
{[%emt 00:00:02]} Qxg3 {[%clk 00:00:12]} 37. Be3 {[%clk 00:00:25]} {[%emt
00:00:01]} Qxh3 {[%clk 00:00:10]} {[%emt 00:00:04]} 38. Bxd4 {[%clk 00:00:26]}
{[%emt 00:00:01]} Nxd4 {[%clk 00:00:10]} {[%emt 00:00:02]} 39. Ne1 {[%clk
00:00:28]} {[%emt 00:00:01]} d2 {[%clk 00:00:10]} {[%emt 00:00:02]} 40. f3
{[%clk 00:00:27]} {[%emt 00:00:02]} Qg3+ {[%clk 00:00:10]} {[%emt 00:00:02]}
0-1